Cogmind - Beta 12 @@@ ROGUE MODE // 2023.05.31 @ 18:00:29 Player: Mr Goldstein Result: Self-destructed Performance ------------- Evolutions (4) 2000 Regions Visited (11) 2200 Robots Destroyed (7) 35 Value Destroyed (67) 67 Prototype IDs (3) 60 Alien Tech Used (0) 0 Bonus (500) 500 TOTAL SCORE: 4862 Bonus ------- Entered DSFs 500 Cogmind --------- Core Integrity 194/850 Matter 249/300 Energy 100/100 System Corruption 3% Temperature Cool (0) Movement Core (50) Location -6/Lower Caves Parts ------- > --- POWER (1) -------- (None) > --- PROPULSION (6) --- (None) > --- UTILITY (6) ------ Advanced Visual Processing Unit Experimental Targeting Computer Experimental Targeting Computer > --- WEAPON (2) ------- (None) > --- INVENTORY (5) ---- Micro Nuclear Core Experimental Targeting Computer Rocket Launcher Rocket Launcher Great Maul Peak State ------------ > --- POWER ------------ (None) > --- PROPULSION ------- (None) > --- UTILITY ---------- Advanced Visual Processing Unit Experimental Targeting Computer Experimental Targeting Computer > --- WEAPON ----------- Antimatter Cannon Great Maul > --- INVENTORY -------- Micro Nuclear Core Experimental Targeting Computer Rocket Launcher Rocket Launcher [Rating: 25] Favorites ----------- Power Light Ion Engine Engine Light Ion Engine Propulsion Flight Unit Flight Unit Flight Unit Utility Advanced Visual Processing Unit Processor Advanced Visual Processing Unit Hackware Authchip [R/NC] Protection Propulsion Shielding Weapon Grenade Launcher Energy Gun Improved Spread Laser Ballistic Cannon Antimatter Cannon Launcher Grenade Launcher Impact Weapon Great Maul Build | -11 -10 -10 -10 -9 -8 -7 -7 -7 -7 -6 -6 ------- Run | Jun Mat Min Exi Min Mat Fac Was Fac DSF Fac Low Slots Evolved 8 | . . . . . 4 2 . . . 2 . Power . | . . . . . . . . . . . . Propulsion 4 | . . . . . 2 1 . . . 1 . Utility 4 | . . . . . 2 1 . . . 1 . Weapon . | . . . . . . . . . . . . Parts Attached 18 | . 4 . . 1 1 1 2 . 1 8 . Power 1 | . 1 . . . . . . . . . . Engine 1 | . 1 . . . . . . . . . . Core . | . . . . . . . . . . . . Reactor . | . . . . . . . . . . . . Propulsion 3 | . 2 . . . . . 1 . . . . Treads . | . . . . . . . . . . . . Leg . | . . . . . . . . . . . . Wheel . | . . . . . . . . . . . . Hover . | . . . . . . . . . . . . Flight 3 | . 2 . . . . . 1 . . . . Utility 7 | . . . . 1 1 . 1 . 1 3 . Device . | . . . . . . . . . . . . Storage . | . . . . . . . . . . . . Processor 5 | . . . . . 1 . . . 1 3 . Hackware 1 | . . . . . . . 1 . . . . Protection 1 | . . . . 1 . . . . . . . Artifact . | . . . . . . . . . . . . Weapon 7 | . 1 . . . . 1 . . . 5 . Energy Gun 1 | . . . . . . . . . . 1 . Energy Cannon . | . . . . . . . . . . . . Ballistic Gun . | . . . . . . . . . . . . Ballistic Cannon 1 | . . . . . . . . . . 1 . Launcher 1 | . 1 . . . . . . . . . . Special Weapon . | . . . . . . . . . . . . Impact Weapon 4 | . . . . . . 1 . . . 3 . Slashing Weapon . | . . . . . . . . . . . . Piercing Weapon . | . . . . . . . . . . . . Special Melee Weapon . | . . . . . . . . . . . . Unidentified Prototypes 3 | . . . . . . . . . . 3 . Corrupted Parts 2 | . . . . . . . 2 . . . . System Corruption 10 | . . . . . . . 10 . . . . Parts Lost 6 | . . . . 1 2 . 1 . 1 1 . Power . | . . . . . . . . . . . . Propulsion 3 | . . . . 1 1 . . . 1 . . Utility 2 | . . . . . . . 1 . . 1 . Weapon 1 | . . . . . 1 . . . . . . Highest Loss Streak 2 | . . . . 1 2 . 1 . 1 1 . To Critical Strikes . | . . . . . . . . . . . . Average Slot Usage (%) 26 | . 28 57 57 47 24 13 4 7 15 23 20 Engine 2 | . 5 14 14 8 . . . . . . . Flight 6 | . 14 28 28 22 3 . . 7 7 . . Processor 9 | . . . . . 8 7 2 . 7 22 20 Protection 2 | . . . . 2 9 4 . . . . . Launcher 3 | . 8 14 14 14 3 . . . . . . Naked Turns 59 | . 14 . . . . . 45 . . . . Heaviest Build 6 | . 6 6 6 6 4 4 . . . 4 . Greatest Support 8 | 3 8 8 8 8 4 3 6 6 6 3 3 Greatest Overweight (x) 1 | . . . . . . 1 . . . 1 . Average Overweight (x) . | . . . . . . . . . . . . Largest Inventory Capacity 5 | 5 5 5 5 5 5 5 5 5 5 5 5 Average Capacity 5 | 5 5 5 5 5 5 5 5 5 5 5 5 Most Carried 5 | 1 1 1 1 2 3 5 4 4 3 5 5 Average Carried 3 | . 1 1 . 1 2 3 4 4 3 4 5 Final Capacity 5 | 5 5 5 5 5 5 5 5 5 5 5 5 Final Carried 5 | 1 1 1 . 2 3 4 4 4 3 5 5 Class Distribution -------------------- 100% | Mutant Dominant Class ---------------- Mutant | -10/Materials Mutant | -10/Mines Mutant | -10/Exiles Mutant | -9/Mines Mutant | -8/Materials Mutant | -7/Factory Mutant | -7/Waste Mutant | -7/Factory Mutant | -7/DSF Mutant | -6/Factory Mutant | -6/Lower Caves Resources | -11 -10 -10 -10 -9 -8 -7 -7 -7 -7 -6 -6 ----------- Run | Jun Mat Min Exi Min Mat Fac Was Fac DSF Fac Low Matter Collected 335 | 200 . 15 . 53 . 22 . . . 45 . Remotely . | . . . . . . . . . . . . Salvage Created 180 | . 15 . . 8 . 44 . . . 113 . Parts 13 | . 5 . . 3 . 2 . . . 3 . Haulers Intercepted 2 | . . . . . . 1 . . . 1 . Recyclers Shooed . | . . . . . . . . . . . . Parts Field Recycled . | . . . . . . . . . . . . Retrieved Matter . | . . . . . . . . . . . . Parts Self-Destructed 1 | . . . . . . . . . . . 1 Prevented . | . . . . . . . . . . . . Kills | -11 -10 -10 -10 -9 -8 -7 -7 -7 -7 -6 -6 ------- Run | Jun Mat Min Exi Min Mat Fac Was Fac DSF Fac Low Combat Hostiles Destroyed 5 | . 3 . . 2 . . . . . . . AOE 5 | . 3 . . 2 . . . . . . . Classes Destroyed 2 | . 1 . . . . 1 . . . . . Hauler 2 | . . . . . . 1 . . . 1 . Swarmer 5 | . 3 . . 2 . . . . . . . Best Kill Streak 3 | . 3 . . 2 . 1 . . . 1 . Combat Bots Only 3 | . 3 . . 2 . . . . . . . Max Kills in Single Turn 2 | . 2 . . 2 . 1 . . . 1 . Gunslinging . | . . . . . . . . . . . . Exploded 2 | . 2 . . 2 . . . . . . . Melee . | . . . . . . . . . . . . Uniques/NPCs Destroyed . | . . . . . . . . . . . . Combat | -11 -10 -10 -10 -9 -8 -7 -7 -7 -7 -6 -6 -------- Run | Jun Mat Min Exi Min Mat Fac Was Fac DSF Fac Low Damage Taken 1153 | . 33 . . 94 184 2 87 . 45 623 85 Core 985 | . 33 . . 10 156 . 87 . 43 571 85 Absorbed by Shields . | . . . . . . . . . . . . Redirected to Shielding 9 | . . . . 5 4 . . . . . . Core Remaining (%) 83 | 100 . . . 82 71 . . . 81 . . Volleys Fired 4 | . 2 . . 2 . . . . . . . Largest 1 | . 1 . . 1 . . . . . . . Hottest 30 | . 30 . . 30 . . . . . . . Shots Fired 4 | . 2 . . 2 . . . . . . . Gun . | . . . . . . . . . . . . Cannon . | . . . . . . . . . . . . Launcher 4 | . 2 . . 2 . . . . . . . Special . | . . . . . . . . . . . . Kinetic . | . . . . . . . . . . . . Thermal . | . . . . . . . . . . . . Explosive 4 | . 2 . . 2 . . . . . . . Electromagnetic . | . . . . . . . . . . . . Robot Hit Streak . | . . . . . . . . . . . . Robot Miss Streak . | . . . . . . . . . . . . Penetration Max . | . . . . . . . . . . . . Secondary Targets . | . . . . . . . . . . . . Shots Hit Robots 4 | . . . . . . 2 . . . 2 . Core Hits 7 | . 3 . . 2 . 1 . . . 1 . Critical Kills 1 | . . . . . . 1 . . . . . Critical Parts Destroyed 1 | . . . . . . . . . . 1 . Critical Strikes 2 | . . . . . . 1 . . . 1 . Smash 2 | . . . . . . 1 . . . 1 . Melee Attacks 8 | . . . . . . 2 . . . 6 . Impact 8 | . . . . . . 2 . . . 6 . Slashing . | . . . . . . . . . . . . Piercing . | . . . . . . . . . . . . Sneak Attacks 2 | . . . . . . 1 . . . 1 . Combat Hostiles . | . . . . . . . . . . . . Follow-up Attacks . | . . . . . . . . . . . . Damage Inflicted 584 | . 131 . . 105 . 197 . . . 151 . Guns . | . . . . . . . . . . . . Cannons . | . . . . . . . . . . . . Explosions 236 | . 131 . . 105 . . . . . . . Melee 333 | . . . . . . 191 . . . 142 . Ramming 15 | . . . . . . 6 . . . 9 . Kinetic . | . . . . . . . . . . . . Thermal . | . . . . . . . . . . . . Explosive 236 | . 131 . . 105 . . . . . . . Electromagnetic . | . . . . . . . . . . . . Impact 333 | . . . . . . 191 . . . 142 . Slashing . | . . . . . . . . . . . . Piercing . | . . . . . . . . . . . . Highest Corruption 19 | . . . . . . . 19 19 19 3 3 Average Corruption 7 | . . . . . . . 13 19 19 2 3 Corruption Purged . | . . . . . . . . . . . . Corruption Blocked . | . . . . . . . . . . . . Effects 6 | . . . . . . . 2 1 . 2 1 Message Errors 3 | . . . . . . . 1 . . 1 1 Energy Discharges 1 | . . . . . . . . 1 . . . Data Loss (minor) 2 | . . . . . . . 1 . . 1 . Overload Shots . | . . . . . . . . . . . . Overflow Damage 99 | . . . . . . . . . . 99 . Projectiles . | . . . . . . . . . . . . Explosions . | . . . . . . . . . . . . Melee 99 | . . . . . . . . . . 99 . Knockbacks . | . . . . . . . . . . . . Impact . | . . . . . . . . . . . . Kinetic . | . . . . . . . . . . . . Secondary . | . . . . . . . . . . . . Self-Inflicted Damage 7 | . . . . 1 . 2 . . . 4 . Shots 1 | . . . . 1 . . . . . . . Rammed 5 | . . . . . 1 2 . . . 2 . Targets Rammed 5 | . . . . . 1 2 . . . 2 . Kicked . | . . . . . . . . . . . . Crushed . | . . . . . . . . . . . . Highest Temperature . | . . . . . . . . . . . . Average Temperature . | . . . . . . . . . . . . Received Heat Transfer 372 | . . . . 36 90 . . . . 225 21 Siege Activations . | . . . . . . . . . . . . Robots Corrupted . | . . . . . . . . . . . . Combat Hostiles . | . . . . . . . . . . . . Parts Fried . | . . . . . . . . . . . . Impact Corruptions 1 | . . . . . . . . . . 1 . Robots Melted . | . . . . . . . . . . . . Combat Hostiles . | . . . . . . . . . . . . Parts Melted . | . . . . . . . . . . . . Heat Transferred . | . . . . . . . . . . . . Parts Sabotaged . | . . . . . . . . . . . . Parts Stolen . | . . . . . . . . . . . . Parts Stripped . | . . . . . . . . . . . . Power Chain Reactions . | . . . . . . . . . . . . Missiles Intercepted . | . . . . . . . . . . . . Alert | -11 -10 -10 -10 -9 -8 -7 -7 -7 -7 -6 -6 ------- Run | Jun Mat Min Exi Min Mat Fac Was Fac DSF Fac Low Peak Influence 238 | . 95 36 . 145 171 106 42 29 23 238 . Initial 84 | . . 36 . . 56 84 37 29 23 6 . Average 69 | . 65 36 . 23 96 88 33 29 18 96 . Maximum Alert Level 1 | . . . . . . . . . . 1 . Low Security (%) 93 | 100 100 100 . 100 100 100 100 100 100 79 . Level 1 6 | . . . . . . . . . . 20 . Level 2 . | . . . . . . . . . . . . Level 3 . | . . . . . . . . . . . . Level 4 . | . . . . . . . . . . . . Level 5 . | . . . . . . . . . . . . High Security . | . . . . . . . . . . . . Max Security . | . . . . . . . . . . . . Squads Dispatched 7 | . 1 . . . 2 1 . . . 3 . Investigation 4 | . . . . . 1 1 . . . 2 . Extermination . | . . . . . . . . . . . . Reinforcement 3 | . 1 . . . 1 . . . . 1 . Assault . | . . . . . . . . . . . . Garrison . | . . . . . . . . . . . . Intercept . | . . . . . . . . . . . . Searches Triggered . | . . . . . . . . . . . . Construction Impeded . | . . . . . . . . . . . . Haulers Reinforced 1 | . . . . . . . . . . 1 . Active Scanning Responses . | . . . . . . . . . . . . Cargo Convoy Interrupts . | . . . . . . . . . . . . Stealth | -11 -10 -10 -10 -9 -8 -7 -7 -7 -7 -6 -6 --------- Run | Jun Mat Min Exi Min Mat Fac Was Fac DSF Fac Low Distress Signals . | . . . . . . . . . . . . Communications Jammed . | . . . . . . . . . . . . Distress Signals . | . . . . . . . . . . . . Times Spotted 59 | . 6 . . 10 15 1 6 . 1 15 5 Peak Tracking Total 15 | . 5 . . 5 15 1 6 . 1 8 5 Tactical Retreats 7 | . . . . 1 1 . . . . 5 . Traps | -11 -10 -10 -10 -9 -8 -7 -7 -7 -7 -6 -6 ------- Run | Jun Mat Min Exi Min Mat Fac Was Fac DSF Fac Low Traps Triggered 2 | . . . . . . 1 . . . 1 . Indirectly . | . . . . . . . . . . . . Trap Hack Attempts . | . . . . . . . . . . . . Triggered . | . . . . . . . . . . . . Disarmed . | . . . . . . . . . . . . Reprogrammed . | . . . . . . . . . . . . Reused . | . . . . . . . . . . . . Traps Extracted . | . . . . . . . . . . . . Installed . | . . . . . . . . . . . . Triggered 1 | . . . . . . . . . . . 1 Machines | -11 -10 -10 -10 -9 -8 -7 -7 -7 -7 -6 -6 ---------- Run | Jun Mat Min Exi Min Mat Fac Was Fac DSF Fac Low Machines Disabled . | . . . . . . . . . . . . Max in Single Turn . | . . . . . . . . . . . . Machines Repaired . | . . . . . . . . . . . . Machines Sabotaged . | . . . . . . . . . . . . Overloaded Fab Kills . | . . . . . . . . . . . . Hacking | -11 -10 -10 -10 -9 -8 -7 -7 -7 -7 -6 -6 --------- Run | Jun Mat Min Exi Min Mat Fac Was Fac DSF Fac Low Machines Accessed 10 | . 1 . 1 . 2 3 . 1 . 2 . Terminals 8 | . 1 . . . 2 2 . 1 . 2 . Fabricators . | . . . . . . . . . . . . Repair Stations . | . . . . . . . . . . . . Recycling Units 1 | . . . . . . 1 . . . . . Scanalyzers . | . . . . . . . . . . . . Garrison Access . | . . . . . . . . . . . . Total Hacks 20 | . 3 . 1 . 4 5 . 1 . 6 . Successful 4 | . . . 1 . 1 . . 1 . 1 . Failed 16 | . 3 . . . 3 5 . . . 5 . Catastrophic 9 | . 1 . . . 1 4 . . . 3 . Database Lockouts . | . . . . . . . . . . . . Manual 9 | . 3 . . . 4 2 . . . . . Terminals 17 | . 3 . . . 4 3 . 1 . 6 . Fabricators . | . . . . . . . . . . . . Repair Stations . | . . . . . . . . . . . . Recycling Units 2 | . . . . . . 2 . . . . . Scanalyzers . | . . . . . . . . . . . . Garrison Access . | . . . . . . . . . . . . Terminal Hacks 3 | . . . 1 . . . . 1 . 1 . Record 1 | . . . 1 . . . . . . . . Open DSF 1 | . . . . . . . . 1 . . . Branch Access Points 1 | . . . . . . . . . . 1 . Fabricator Hacks . | . . . . . . . . . . . . Repair Station Hacks . | . . . . . . . . . . . . Recycling Unit Hacks . | . . . . . . . . . . . . Scanalyzer . | . . . . . . . . . . . . Garrison Access Hacks . | . . . . . . . . . . . . Unauthorized Hacks 1 | . . . . . 1 . . . . . . Terminals 1 | . . . . . 1 . . . . . . Sabotage 1 | . . . . . 1 . . . . . . Fabricators . | . . . . . . . . . . . . Repair Stations . | . . . . . . . . . . . . Recycling Units . | . . . . . . . . . . . . Scanalyzers . | . . . . . . . . . . . . Garrison Access . | . . . . . . . . . . . . Data Cores Recovered . | . . . . . . . . . . . . Used . | . . . . . . . . . . . . Hacking Detections 9 | . 1 . . . 2 3 . 1 . 2 . Full Trace Events 4 | . 1 . . . 1 1 . . . 1 . Feedback Events . | . . . . . . . . . . . . Feedback Blocked . | . . . . . . . . . . . . Robot Schematics Acquired . | . . . . . . . . . . . . Robots Built . | . . . . . . . . . . . . Authchips . | . . . . . . . . . . . . Time . | . . . . . . . . . . . . Total Robot Build Rating . | . . . . . . . . . . . . Part Schematics Acquired . | . . . . . . . . . . . . Parts Built . | . . . . . . . . . . . . Authchips . | . . . . . . . . . . . . Time . | . . . . . . . . . . . . Total Part Build Rating . | . . . . . . . . . . . . Parts Repaired . | . . . . . . . . . . . . Time . | . . . . . . . . . . . . Parts Recycled . | . . . . . . . . . . . . Recycled Matter . | . . . . . . . . . . . . Retrieved Matter . | . . . . . . . . . . . . Retrieved Components . | . . . . . . . . . . . . Parts Scanalyzed . | . . . . . . . . . . . . Part Schematics Acquired . | . . . . . . . . . . . . Parts Damaged . | . . . . . . . . . . . . Bothacking | -11 -10 -10 -10 -9 -8 -7 -7 -7 -7 -6 -6 ------------ Run | Jun Mat Min Exi Min Mat Fac Was Fac DSF Fac Low Used RIF Installer . | . . . . . . . . . . . . Robots Hacked . | . . . . . . . . . . . . Non-combat . | . . . . . . . . . . . . Combat . | . . . . . . . . . . . . Robot Hacks Applied . | . . . . . . . . . . . . Relay Couplers Released . | . . . . . . . . . . . . Fabnet Peak Effective % . | . . . . . . . . . . . . Robots Rewired . | . . . . . . . . . . . . Allies Hacked . | . . . . . . . . . . . . Hacks Repelled . | . . . . . . . . . . . . Allies | -11 -10 -10 -10 -9 -8 -7 -7 -7 -7 -6 -6 -------- Run | Jun Mat Min Exi Min Mat Fac Was Fac DSF Fac Low Total Allies . | . . . . . . . . . . . . Largest Group . | . . . . . . . . . . . . Highest-Rated Group . | . . . . . . . . . . . . Highest-Rated Ally . | . . . . . . . . . . . . Total Orders . | . . . . . . . . . . . . Ally Attacks . | . . . . . . . . . . . . Total Damage . | . . . . . . . . . . . . Kills . | . . . . . . . . . . . . Allies Corrupted . | . . . . . . . . . . . . Allies Melted . | . . . . . . . . . . . . Intel | -11 -10 -10 -10 -9 -8 -7 -7 -7 -7 -6 -6 ------- Run | Jun Mat Min Exi Min Mat Fac Was Fac DSF Fac Low Robot Analysis Total . | . . . . . . . . . . . . Derelict Logs Recovered 1 | . . . . 1 . . . . . . . Drone Launches . | . . . . . . . . . . . . Drone Recoveries . | . . . . . . . . . . . . Exploration | -11 -10 -10 -10 -9 -8 -7 -7 -7 -7 -6 -6 ------------- Run | Jun Mat Min Exi Min Mat Fac Was Fac DSF Fac Low Turns Passed 914 | 15 45 38 48 121 93 147 80 6 14 244 63 Spaces Moved 1775 | 28 84 101 128 295 196 256 155 15 30 403 84 Core 1075 | 28 31 . . . 112 256 147 . 14 403 84 Treads . | . . . . . . . . . . . . Legs . | . . . . . . . . . . . . Wheels . | . . . . . . . . . . . . Hover . | . . . . . . . . . . . . Flight 700 | . 53 101 128 295 84 . 8 15 16 . . Fastest Speed 37 | 50 37 37 37 37 40 50 40 40 40 50 50 Average Speed 45 | 50 41 37 37 38 45 51 49 40 44 51 50 Slowest Speed 100 | 50 50 37 37 40 50 100 50 40 50 100 50 Overloaded Moves . | . . . . . . . . . . . . Propulsion Burnouts . | . . . . . . . . . . . . Robots Hopped 9 | . 3 . . 4 2 . . . . . . Cave-ins Triggered . | . . . . . . . . . . . . Exploration Rate (%) 31 | 4 28 25 47 67 30 11 94 1 46 14 14 Regions Visited 11 Branch Regions 4 Pre-discovered Areas 1 | . . . 1 . . . . . . . . Known Exits Taken 2 | . . . . . . . . 1 . 1 . Unknown Exits Taken 6 | 1 1 1 1 1 1 . . . . . . Scrap Searched 3 | . . 1 . 2 . . . . . . . Spaces Dug 8 | . 4 . . . . . . . . 4 . Terrain Destroyed 31 | . 9 . . 18 . . . . . 4 . Melee 4 | . . . . . . . . . . 4 . Projectile . | . . . . . . . . . . . . AOE 27 | . 9 . . 18 . . . . . . . Terrain Rammed . | . . . . . . . . . . . . Walls Destroyed . | . . . . . . . . . . . . Machines Disabled . | . . . . . . . . . . . . Actions | -11 -10 -10 -10 -9 -8 -7 -7 -7 -7 -6 -6 --------- Run | Jun Mat Min Exi Min Mat Fac Was Fac DSF Fac Low Total 1831 | 28 86 100 128 296 196 268 156 14 30 425 104 Wait 20 | . . . . . . . . . . . 20 Move 1748 | 27 77 100 127 286 192 256 154 14 29 402 84 Hop 9 | . 3 . . 4 2 . . . . . . Pick Up 9 | 1 . . . 2 1 3 . . . 2 . Fast Attach 13 | . 4 . . 1 1 . 2 . . 5 . Attach 5 | . . . . . . 1 . . 1 3 . Detach 4 | . . . . . . 1 . . . 3 . Swap . | . . . . . . . . . . . . Drop 7 | . . . 1 1 . 3 . . . 2 . Fire 4 | . 2 . . 2 . . . . . . . Melee 8 | . . . . . . 2 . . . 6 . Ram 4 | . . . . . . 2 . . . 2 . Kick . | . . . . . . . . . . . . Crush . | . . . . . . . . . . . . Escape Stasis . | . . . . . . . . . . . . Rewire . | . . . . . . . . . . . . Trap . | . . . . . . . . . . . . Miscellaneous . | . . . . . . . . . . . . Route ------- -11/Junkyard -10/Materials -10/Mines -10/Exiles -9/Mines -8/Materials -7/Factory -7/Waste -7/Factory -7/DSF -6/Factory (discovered 2 exits: *Low x2) -6/Lower Caves History --------- Turn | Location | Event 6 | -11/Junkyard | Discovered new exit (range 16) 16 | -11/Junkyard | Entered Materials 56 | -10/Materials | Discovered new exit (range 16) 61 | -10/Materials | Entered Mines 97 | -10/Mines | Deemed a non-threat by the Exiles lab entrance 97 | -10/Mines | Discovered new exit (range 5) 99 | -10/Mines | Entered Exiles 108 | -10/Exiles | Met 8R-AWN 115 | -10/Exiles | Met EX-HEX 131 | -10/Exiles | Learned location of Zion (-7) 142 | -10/Exiles | Discovered new exit (range 11) 147 | -10/Exiles | Entered Mines 193 | -9/Mines | Learned Materials stockpile data 210 | -9/Mines | Received a Rocket Launcher from a helpful Derelict 262 | -9/Mines | Discovered new exit (range 11) 268 | -9/Mines | Entered Materials 268 | -8/Materials | Evolved 4 slots: Propulsion x2, Utility x2 310 | -8/Materials | Build established: Mutant 348 | -8/Materials | Discovered new exit (range 20) 361 | -8/Materials | Entered Factory 361 | -7/Factory | Evolved 2 slots: Propulsion x1, Utility x1 508 | -7/Factory | Sucked down chute 508 | -7/Factory | Entered Waste 523 | -7/Waste | EMP discharged 523 | -7/Waste | System corruption reached 10% 529 | -7/Waste | Spotted C-40 Crusher 530 | -7/Waste | Spotted C-40 Crusher 532 | -7/Waste | Spotted C-40 Crusher 532 | -7/Waste | Spotted C-40 Crusher 533 | -7/Waste | Spotted C-40 Crusher 539 | -7/Waste | Crushed by Compactor (1 part destroyed, 1 dropped) 572 | -7/Waste | Spotted C-40 Crusher 581 | -7/Waste | Discovered new exit (range 12) 588 | -7/Waste | Entered Factory 594 | -7/Factory | Identified exit to DSF 594 | -7/Factory | Entered DSF 599 | -7/DSF | Discovered new exit (range 20) 608 | -7/DSF | Entered Factory 608 | -6/Factory | Evolved 2 slots: Propulsion x1, Utility x1 634 | -6/Factory | Found Prototype Processor 634 | -6/Factory | Identified Exp. Targeting Computer 636 | -6/Factory | Found Exp. Targeting Computer 642 | -6/Factory | Found Exp. Targeting Computer 748 | -6/Factory | Spotted B-75 Beast 770 | -6/Factory | Identified exit to Lower Caves 843 | -6/Factory | Core integrity fell below 50% 852 | -6/Factory | Entered Lower Caves 913 | -6/Lower Caves | Spotted B-75 Beast 915 | -6/Lower Caves | Self-destructed Last Messages --------------- 00722_ An alarm sounds. 00722_ ALERT: Alarm triggered, dispatching investigation squad. 00749_ Pressure Siphon disabled. 00770_ Connecting with Terminal... >>Access(Branch) Found 2 branch access points: (192,10) Lower Caves (45,153) Lower Caves Map updated. 00773_ Slammed into P-60 Hacker. 00773_ Transport Network Coupler broken. 00773_ Destabilizing: Short circuit. 00783_ A8:UA8|ETBWEPF4KGUSL=U 00837_ G-50 Soldier shuts down. 00837_ Broken Transport Network Coupler destroyed. 00839_ System corrupted: Component data lost. 00841_ Slammed into G-50 Soldier. LOCATION=LOWER CAVES GOAL=ESCAPE 00872_ 4DLOSJOY%SUZXL